fUSD/lending_fUSD_20250417
["ID","MTS","AMOUNT","RATE_DAILY","PERIOD"]
[358233051,1744859449947,-785.37,0.00052328,120]
[358233052,1744859449957,-500.0,0.00052328,120]
[358233053,1744859449966,-220.19973132,0.00052328,120]
[358233054,1744859449976,-500.0,0.00052328,120]
[358233055,1744859449986,-260.57349433,0.00052328,120]
[358233056,1744859449996,-2393.1,0.00052328,120]
[358233057,1744859450007,-500.0,0.00052328,120]
[358233058,1744859450016,-564.1,0.00052328,120]
[358233059,1744859450026,-500.0,0.00052328,120]
[358233060,1744859450036,-500.0,0.00052328,120]
[358233061,1744859450046,-500.0,0.00052328,120]
[358233062,1744859450055,-500.73716375,0.00052328,120]
[358233063,1744859450065,-500.0,0.00052328,2]
[358233064,1744859450075,-500.0,0.00052328,120]
[358233065,1744859450085,-500.0,0.00052328,120]
[358233066,1744859450095,-616.44214099,0.00052328,120]
[358233067,1744859450105,-500.0,0.00052328,120]
[358233068,1744859450115,-500.0,0.00052328,120]
[358233069,1744859450125,-628.92,0.00052328,120]
[358233070,1744859450134,-593.77,0.00052328,120]
[358233071,1744859450144,-500.0,0.00052328,120]
[358233072,1744859450153,-1351.1,0.00052328,120]
[358233073,1744859450163,-500.0,0.00052328,120]
[358233074,1744859450173,-500.0,0.00052328,120]
[358233075,1744859450182,-500.0,0.00052328,120]
[358233076,1744859450192,-500.0,0.00052328,120]
[358233077,1744859450201,-847.22,0.00052328,120]
[358233078,1744859450210,-500.0,0.00052328,120]
[358233079,1744859450220,-500.0,0.00052328,120]
[358233080,1744859450229,-500.0,0.00052328,120]
[358233081,1744859450239,-500.0,0.00052328,120]
[358233082,1744859450248,-500.0,0.00052328,120]
[358233083,1744859450257,-500.0,0.00052328,120]
[358233084,1744859450267,-500.0,0.00052328,120]
[358233085,1744859450277,-1086.38,0.00052328,120]
[358233086,1744859450286,-500.0,0.00052328,120]
[358233087,1744859450297,-500.0,0.00052328,120]
[358233088,1744859450306,-894.41,0.00052328,120]
[358233089,1744859450317,-1245.86,0.00052328,120]
[358233090,1744859450326,-1000.0,0.00052328,120]
[358233091,1744859450336,-500.0,0.00052328,120]
[358233092,1744859450345,-500.0,0.00052328,120]
[358233093,1744859450355,-500.0,0.00052328,120]
[358233094,1744859450365,-500.0,0.00052328,120]
[358233095,1744859450374,-500.0,0.00052328,120]
[358233096,1744859450384,-1700.81,0.00052328,120]
[358233097,1744859450394,-601.93,0.00052328,120]
[358233098,1744859450404,-500.0,0.00052328,120]
[358233099,1744859450413,-973.29,0.00052328,120]
[358233100,1744859450423,-500.0,0.00052328,120]
[358233101,1744859450433,-500.0,0.00052328,120]
[358233102,1744859450443,-500.0,0.00052328,120]
[358233103,1744859450452,-500.0,0.00052328,120]
[358233104,1744859450462,-772.08,0.00052328,120]
[358233105,1744859450472,-500.0,0.00052328,120]
[358233106,1744859450482,-500.0,0.00052328,120]
[358233107,1744859450492,-500.0,0.00052328,120]
[358233108,1744859450502,-500.0,0.00052328,120]
[358233109,1744859450511,-500.0,0.00052328,120]
[358233110,1744859450521,-500.0,0.00052328,120]
[358233111,1744859450531,-500.0,0.00052328,120]
[358233112,1744859450540,-500.0,0.00052328,120]
[358233113,1744859450549,-1313.41,0.00052328,120]
[358233114,1744859450559,-500.0,0.00052328,120]
[358233115,1744859450569,-500.0,0.00052328,120]
[358233116,1744859450578,-500.0,0.00052328,120]
[358233117,1744859450587,-500.0,0.00052328,120]
[358233118,1744859450597,-500.0,0.00052328,120]
[358233119,1744859450606,-500.0,0.00052328,120]
[358233120,1744859450616,-500.0,0.00052328,120]
[358233121,1744859450625,-500.0,0.00052328,120]
[358233122,1744859450635,-500.0,0.00052328,120]
[358233123,1744859450645,-500.0,0.00052328,120]
[358233124,1744859450655,-500.0,0.00052328,120]
[358233125,1744859450664,-1400.15,0.00052328,120]
[358233126,1744859450674,-599.97,0.00052328,120]
[358233127,1744859450683,-1387.76,0.00052328,120]
[358233128,1744859450693,-500.0,0.00052328,120]
[358233129,1744859450702,-545.11,0.00052328,120]
[358233130,1744859450711,-500.0,0.00052328,120]
[358233131,1744859450721,-1656.69,0.00052328,120]
[358233132,1744859450731,-500.0,0.00052328,120]
[358233133,1744859450740,-500.0,0.00052328,120]
[358233134,1744859450750,-616.40995517,0.00052328,120]
[358233135,1744859450759,-500.0,0.00052328,120]
[358233136,1744859450768,-500.0,0.00052328,120]
[358233137,1744859450778,-1595.93,0.00052328,120]
[358233138,1744859450787,-500.0,0.00052328,120]
[358233139,1744859450797,-500.0,0.00052328,120]
[358233140,1744859450809,-1305.33,0.00052328,120]
[358233141,1744859450818,-519.06,0.00052328,120]
[358233142,1744859450827,-500.0,0.00052328,120]
[358233143,1744859450837,-500.0,0.00052328,120]
[358233144,1744859450847,-500.0,0.00052328,120]
[358233145,1744859450856,-500.0,0.00052328,120]
[358233146,1744859450865,-535.50034337,0.00052328,120]
[358233147,1744859450875,-648.86,0.00052328,120]
[358233148,1744859450886,-500.0,0.00052328,120]
[358233149,1744859450895,-500.0,0.00052328,120]
[358233150,1744859450905,-500.0,0.00052328,120]
[358233151,1744859450914,-568.33,0.00052328,120]
[358233152,1744859450923,-500.0,0.00052328,120]
[358233153,1744859450932,-500.0,0.00052328,120]
[358233154,1744859450942,-500.0,0.00052328,120]
[358233155,1744859450952,-956.43,0.00052328,120]
[358233156,1744859450962,-500.0,0.00052328,120]
[358233157,1744859450972,-168.43943498,0.00052328,120]
[358233158,1744859450981,-595.99810681,0.00052328,120]
[358233159,1744859450991,-500.0,0.00052328,120]
[358233160,1744859451001,-500.0,0.00052328,120]
[358233161,1744859451011,-500.0,0.00052328,120]
[358233162,1744859451020,-896.32,0.00052328,120]
[358233163,1744859451030,-514.94,0.00052328,120]
[358233164,1744859451040,-500.0,0.00052328,120]
[358233165,1744859451050,-1343.0,0.00052328,120]
[358233166,1744859451061,-500.0,0.00052328,120]
[358233167,1744859451070,-500.0,0.00052328,120]
[358233168,1744859451079,-500.0,0.00052328,120]
[358233169,1744859451089,-500.0,0.00052328,120]
[358233170,1744859451098,-500.0,0.00052328,120]
[358233171,1744859451108,-502.92,0.00052328,120]
[358233172,1744859451118,-500.0,0.00052328,120]
[358233173,1744859451127,-1204.69,0.00052328,120]
[358233174,1744859451136,-500.0,0.00052328,120]
[358233175,1744859451146,-500.0,0.00052328,120]
[358233176,1744859451156,-500.0,0.00052328,120]
[358233177,1744859451166,-500.0,0.00052328,120]
[358233178,1744859451176,-500.0,0.00052328,120]
[358233179,1744859451186,-562.03,0.00052328,14]
[358233180,1744859451195,-500.0,0.00052328,120]
[358233181,1744859451205,-519.28,0.00052328,120]
[358233182,1744859451214,-531.36493219,0.00052328,120]
[358233183,1744859451224,-500.0,0.00052328,120]
[358233184,1744859451233,-625.33,0.00052328,120]
[358233185,1744859451241,-983.38,0.00052328,120]
[358233186,1744859451250,-668.68,0.00052328,120]
[358233187,1744859451259,-500.0,0.00052328,120]
[358233188,1744859451269,-500.0,0.00052328,120]
[358233189,1744859451279,-831.75,0.00052328,120]
[358233190,1744859451288,-500.0,0.00052328,120]
[358233191,1744859451297,-1719.300297,0.00052328,120]
[358233192,1744859451750,-311.079703,0.00052328,120]
[358233193,1744859451759,-500.0,0.00052328,120]
[358233194,1744859451769,-1294.22,0.00052328,120]
[358233195,1744859451778,-500.0,0.00052328,120]
[358233196,1744859451788,-500.0,0.00052328,120]
[358233197,1744859451797,-752.38,0.00052328,120]
[358233198,1744859451809,-882.47,0.00052328,120]
[358233199,1744859451818,-500.0,0.00052328,120]
[358233200,1744859451828,-605.99,0.00052328,120]
[358233201,1744859451838,-500.0,0.00052328,120]
[358233202,1744859451848,-1716.0,0.00052328,120]
[358233203,1744859451858,-500.0,0.00052328,120]
[358233204,1744859451867,-610.04,0.00052328,120]
[358233205,1744859451876,-710.52,0.00052328,120]
[358233206,1744859451886,-2572.46,0.00052328,120]
[358233207,1744859451896,-500.0,0.00052328,120]
[358233208,1744859451906,-500.0,0.00052328,120]
[358233209,1744859451915,-500.0,0.00052328,120]
[358233210,1744859451925,-500.0,0.00052328,120]
[358233211,1744859451935,-1009.79,0.00052328,30]
[358233212,1744859451945,-500.0,0.00052328,120]
[358233213,1744859451955,-500.0,0.00052328,120]
[358233214,1744859451965,-500.0,0.00052328,120]
[358233215,1744859451974,-504.14340415,0.00052328,120]
[358233216,1744859451984,-500.0,0.00052328,120]
[358233217,1744859451993,-568.51,0.00052328,120]
[358233218,1744859452003,-1129.41,0.00052328,120]
[358233219,1744859452012,-500.0,0.00052328,14]
[358233220,1744859452022,-1681.73,0.00052328,120]
[358233221,1744859452031,-500.0,0.00052328,120]
[358233222,1744859452040,-500.0,0.00052328,120]
[358233223,1744859452050,-500.0,0.00052328,120]
[358233224,1744859452060,-531.79,0.00052328,120]
[358233225,1744859452071,-500.0,0.00052328,120]
[358233226,1744859452082,-1439.24,0.00052328,120]
[358233227,1744859452092,-1817.47,0.00052328,120]
[358233228,1744859452103,-500.0,0.00052328,120]
[358233229,1744859452113,-2000.0,0.00052328,2]
[358233230,1744859452122,-500.0,0.00052328,120]
[358233231,1744859452131,-500.0,0.00052328,120]
[358233232,1744859452141,-500.0,0.00052328,120]
[358233233,1744859452150,-500.0,0.00052328,120]
[358233234,1744859452159,-726.64,0.00052328,120]
[358233235,1744859452168,-1349.69,0.00052328,120]
[358233236,1744859452178,-500.0,0.00052328,120]
[358233237,1744859452187,-884.02,0.00052328,120]
[358233238,1744859452197,-550.17,0.00052328,120]
[358233239,1744859452207,-1439.51,0.00052328,120]
[358233240,1744859452217,-757.12,0.00052328,120]
[358233241,1744859452227,-573.45166273,0.00052328,30]
[358233242,1744859452236,-650.0,0.00052328,120]
[358233243,1744859452244,-838.39,0.00052328,120]
[358233244,1744859452253,-500.0,0.00052328,120]
[358233245,1744859452263,-1666.45,0.00052328,120]
[358233246,1744859452272,-1117.32,0.00052328,120]
[358233247,1744859452282,-500.0,0.00052328,120]
[358233248,1744859452291,-500.0,0.00052328,120]
[358233249,1744859452301,-720.6,0.00052328,120]
[358233250,1744859452311,-500.0,0.00052328,120]
[358233251,1744859452321,-500.0,0.00052328,120]
[358233252,1744859452331,-500.0,0.00052328,120]
[358233253,1744859452341,-500.0,0.00052328,120]
[358233254,1744859452350,-500.0,0.00052328,120]
[358233255,1744859452360,-500.0,0.00052328,120]
[358233256,1744859452369,-927.12,0.00052328,120]
[358233257,1744859452378,-500.0,0.00052328,120]
[358233258,1744859452387,-500.0,0.00052328,120]
[358233259,1744859452397,-500.0,0.00052328,120]
[358233260,1744859452407,-500.0,0.00052328,120]
[358233261,1744859452416,-2076.67,0.00052328,120]
[358233262,1744859452426,-500.0,0.00052328,120]
[358233263,1744859452435,-833.01,0.00052328,120]
[358233264,1744859452444,-521.97,0.00052328,120]
[358233265,1744859452453,-559.37,0.00052328,120]
[358233266,1744859452462,-2350.19,0.00052328,120]
[358233267,1744859452472,-947.82,0.00052328,120]
[358233268,1744859452482,-500.0,0.00052328,120]
[358233269,1744859452491,-1344.54,0.00052328,120]
[358233270,1744859452500,-1470.85,0.00052328,120]
[358233271,1744859452510,-512.22,0.00052328,30]
[358233272,1744859452519,-1805.18,0.00052328,120]
[358233273,1744859452529,-500.0,0.00052328,120]
[358233274,1744859452539,-787.47,0.00052328,120]
[358233275,1744859452548,-1855.58,0.00052328,120]
[358233276,1744859452557,-500.0,0.00052328,120]
[358233277,1744859452567,-524.99,0.00052328,120]
[358233278,1744859452577,-500.0,0.00052328,120]
[358233279,1744859452586,-979.26,0.00052328,120]
[358233280,1744859452595,-272.91145909,0.00052328,120]
[358233281,1744859452609,-227.08854091,0.00052328,120]
[358233282,1744859452619,-500.0,0.00052328,120]
[358233283,1744859452630,-574.09212687,0.00052328,120]
[358233284,1744859452643,-104.23787313,0.00052328,120]
[358233285,1744859452652,-500.0,0.00052328,120]
[358233286,1744859452662,-726.71,0.00052328,120]
[358233287,1744859452671,-500.0,0.00052328,120]
[358233288,1744859452681,-500.0,0.00052328,120]
[358233289,1744859452690,-500.0,0.00052328,120]
[358233290,1744859452699,-1446.98,0.00052328,120]
[358233291,1744859452709,-500.0,0.00052328,120]
[358233292,1744859452718,-1966.57,0.00052328,120]
[358233293,1744859452728,-300.50212672,0.00052328,120]
[358233294,1744859453102,-151.0,0.00033578,2]
[358233295,1744859453111,-151.0,0.00033578,2]
[358233296,1744859453121,-500.0,0.00052054,120]
[358233297,1744859453130,-396.28256439,0.00052054,120]
[358233298,1744859453141,-103.71743561,0.00052054,120]
[358233299,1744859453151,-199.49787328,0.00052328,120]
[358233300,1744859453160,-500.0,0.00052328,120]
[358233301,1744859453169,-1851.56,0.00052328,120]
[358233302,1744859453179,-500.0,0.00052328,120]
[358233303,1744859453188,-582.23,0.00052328,120]
[358233304,1744859453197,-1335.51,0.00052328,120]
[358233305,1744859453207,-1729.42,0.00052328,120]
[358233306,1744859453217,-500.0,0.00052328,120]
[358233307,1744859453227,-500.0,0.00052328,120]
[358233308,1744859453236,-500.0,0.00052328,120]
[358233309,1744859453244,-500.0,0.00052328,120]
[358233310,1744859453253,-500.0,0.00052328,120]
[358233311,1744859453262,-500.0,0.00052328,120]
[358233312,1744859453271,-1579.12,0.00052328,120]
[358233313,1744859453281,-1842.89,0.00052328,120]
[358233314,1744859453291,-500.0,0.00052328,120]
[358233315,1744859453301,-1992.51,0.00052328,120]
[358233316,1744859453310,-701.61,0.00052328,120]
[358233317,1744859453319,-500.0,0.00052328,120]
[358233318,1744859453329,-500.0,0.00052328,120]
[358233319,1744859453338,-500.0,0.00052328,120]
[358233320,1744859453347,-575.17,0.00052328,120]
[358233321,1744859453356,-567.52,0.00052328,120]
[358233322,1744859453366,-500.0,0.00052328,120]
[358233323,1744859453375,-646.58,0.00052328,120]
[358233324,1744859453385,-621.4288182,0.00052328,120]
[358233325,1744859453394,-500.0,0.00052328,120]
[358233326,1744859453404,-500.0,0.00052328,120]
[358233327,1744859453414,-500.0,0.00052328,120]
[358233328,1744859453423,-500.0,0.00052328,120]
[358233329,1744859453433,-511.89,0.00052328,120]
[358233330,1744859453443,-500.0,0.00052328,120]
[358233331,1744859453452,-525.72,0.00052328,120]
[358233332,1744859453462,-500.0,0.00052328,120]
[358233333,1744859453471,-500.0,0.00052328,120]
[358233334,1744859453481,-1929.7,0.00052328,120]
[358233335,1744859453492,-1491.73,0.00052328,120]
[358233336,1744859453502,-500.0,0.00052328,120]
[358233337,1744859453512,-695.56,0.00052328,120]
[358233338,1744859453521,-500.0,0.00052328,120]
[358233339,1744859453530,-545.78,0.00052328,120]
[358233340,1744859453540,-500.0,0.00052328,120]
[358233341,1744859453550,-565.68598526,0.00052328,120]
[358233342,1744859453559,-500.0,0.00052328,120]
[358233343,1744859453569,-500.0,0.00052328,120]
[358233344,1744859453578,-528.89,0.00052328,120]
[358233345,1744859453588,-500.0,0.00052328,120]
[358233346,1744859453597,-1445.71,0.00052328,120]
[358233347,1744859453607,-1620.22,0.00052328,120]
[358233348,1744859453617,-500.0,0.00052328,120]
[358233349,1744859453627,-500.0,0.00052328,120]
[358233350,1744859453636,-607.31,0.00052328,120]
[358233351,1744859453645,-500.40851917,0.00052328,120]
[358233352,1744859453655,-500.0,0.00052328,120]
[358233353,1744859453664,-2198.65,0.00052328,120]
[358233354,1744859453674,-500.0,0.00052328,120]
[358233355,1744859453683,-500.0,0.00052328,120]
[358233356,1744859453692,-500.0,0.00052328,120]
[358233357,1744859453702,-949.9,0.00052328,120]
[358233358,1744859453711,-2503.52,0.00052328,120]
[358233359,1744859453721,-1232.14,0.00052328,120]
[358233360,1744859453730,-500.0,0.00052328,120]
[358233361,1744859453740,-500.0,0.00052328,120]
[358233362,1744859453749,-500.0,0.00052328,120]
[358233363,1744859453759,-526.93867809,0.00052328,120]
[358233364,1744859453768,-500.0,0.00052328,120]
[358233365,1744859453778,-500.0,0.00052328,120]
[358233366,1744859453787,-518.61729504,0.00052328,120]
[358233367,1744859453796,-500.0,0.00052328,120]
[358233368,1744859453806,-685.74,0.00052328,120]
[358233369,1744859453819,-500.0,0.00052328,120]
[358233370,1744859453828,-500.0,0.00052328,120]
[358233371,1744859453838,-1473.91,0.00052328,120]
[358233372,1744859453847,-500.0,0.00052328,120]
[358233373,1744859453858,-500.0,0.00052328,120]
[358233374,1744859453867,-1381.1,0.00052328,120]
[358233375,1744859453877,-799.28,0.00052328,120]
[358233376,1744859453887,-300.0,0.00052328,120]
[358233377,1744859453897,-500.0,0.00052328,120]
[358233378,1744859453907,-1251.11,0.00052328,120]
[358233379,1744859453917,-500.0,0.00052328,120]
[358233380,1744859453927,-1428.74,0.00052328,120]
[358233381,1744859453936,-677.17,0.00052328,120]
[358233382,1744859453946,-151.0,0.00052328,120]
[358233383,1744859453955,-151.0,0.00052328,120]
[358233384,1744859453965,-1225.63,0.00052328,120]
[358233385,1744859453975,-570.9,0.00052328,120]
[358233386,1744859453985,-151.0,0.00052328,120]
[358233387,1744859453996,-151.0,0.00052328,120]
[358233388,1744859454005,-500.0,0.00052328,120]
[358233389,1744859454015,-151.0,0.00052328,120]
[358233390,1744859454025,-1939.52,0.00052328,120]
[358233391,1744859454035,-280.674408,0.00052328,120]
[358233392,1744859454043,-280.674408,0.00052328,120]
[358233393,1744859454052,-500.0,0.00052328,120]
[358233394,1744859454061,-561.25550754,0.00052328,120]
[358233395,1744859454072,-500.0,0.00052328,120]
[358233396,1744859454081,-500.0,0.00052328,120]
[358233397,1744859454091,-500.0,0.00052328,120]
[358233398,1744859454100,-151.0,0.00052328,120]
[358233399,1744859454110,-151.0,0.00052328,120]
[358233400,1744859454119,-500.0,0.00052328,120]
[358233401,1744859454130,-1000.0,0.00052328,120]
[358233402,1744859454139,-280.674408,0.00052328,120]
[358233403,1744859454149,-280.674408,0.00052328,120]
[358233404,1744859454158,-151.0,0.00052328,120]
[358233405,1744859454168,-509.33067526,0.00052328,120]
[358233406,1744859454176,-852.38,0.00052328,120]
[358233407,1744859454186,-151.0,0.00052328,120]
[358233408,1744859454196,-151.0,0.00052328,120]
[358233409,1744859454206,-231.63963832,0.00052328,120]
[358233410,1744859454215,-500.0,0.00052328,120]
[358233411,1744859454225,-500.0,0.00052328,120]
[358233412,1744859454234,-437.12284183,0.00052328,120]
[358233413,1744859454243,-500.0,0.00052328,120]
[358233414,1744859454253,-500.0,0.00052328,120]
[358233415,1744859454262,-500.0,0.00052328,120]
[358233416,1744859454272,-1204.91,0.00052328,120]
[358233417,1744859454282,-500.0,0.00052328,120]
[358233418,1744859454291,-500.0,0.00052328,120]
[358233419,1744859454301,-500.0,0.00052328,120]
[358233420,1744859454311,-500.0,0.00052328,120]
[358233421,1744859454321,-753.72,0.00052328,120]
[358233422,1744859454330,-500.0,0.00052328,120]
[358233423,1744859454340,-500.0,0.00052328,120]
[358233424,1744859454349,-500.0,0.00052328,120]
[358233425,1744859454359,-500.0,0.00052328,120]
[358233426,1744859454368,-500.0,0.00052328,120]
[358233427,1744859454378,-2804.57,0.00052328,120]
[358233428,1744859454388,-1019.91,0.00052328,120]
[358233429,1744859454398,-1354.09,0.00052328,120]
[358233430,1744859454408,-500.0,0.00052328,120]
[358233431,1744859454418,-500.0,0.00052328,120]
[358233432,1744859454428,-500.0,0.00052328,120]
[358233433,1744859454438,-500.0,0.00052328,120]
[358233434,1744859454447,-500.0,0.00052328,120]
[358233435,1744859454458,-500.0,0.00052328,120]
[358233436,1744859454467,-170.371891,0.00052328,120]
[358233437,1744859454479,-778.53,0.00052328,120]
[358233438,1744859454489,-170.371891,0.00052328,120]
[358233439,1744859454499,-500.0,0.00052328,120]
[358233440,1744859454510,-1201.77,0.00052328,120]
[358233441,1744859454520,-677.21,0.00052328,120]
[358233442,1744859454530,-170.371891,0.00052328,120]
[358233443,1744859454540,-170.371891,0.00052328,120]
[358233444,1744859454551,-513.95410312,0.00052328,120]
[358233445,1744859454561,-500.0,0.00052328,120]
[358233446,1744859454571,-500.0,0.00052328,120]
[358233447,1744859454581,-500.0,0.00052328,120]
[358233448,1744859454592,-500.0,0.00052328,120]
[358233449,1744859454602,-976.54,0.00052328,120]
[358233450,1744859454612,-519.07192402,0.00052328,120]
[358233451,1744859454621,-766.57,0.00052328,120]
[358233452,1744859454631,-500.0,0.00052328,120]
[358233453,1744859454640,-500.0,0.00052328,120]
[358233454,1744859454650,-500.0,0.00052328,120]
[358233455,1744859454660,-500.0,0.00052328,120]
[358233456,1744859454671,-500.0,0.00052328,120]
[358233457,1744859454681,-508.6120998,0.00052328,120]
[358233458,1744859454691,-888.06,0.00052328,120]
[358233459,1744859454702,-500.0,0.00052328,120]
[358233460,1744859454712,-500.0,0.00052328,120]
[358233461,1744859454722,-552.46,0.00052328,120]
[358233462,1744859454732,-500.0,0.00052328,120]
[358233463,1744859454743,-549.89,0.00052328,120]
[358233464,1744859454752,-500.0,0.00052328,120]
[358233465,1744859454763,-500.0,0.00052328,120]
[358233466,1744859454772,-151.0,0.00052328,120]
[358233467,1744859454782,-151.0,0.00052328,120]
[358233468,1744859454792,-543.95,0.00052328,120]
[358233469,1744859454802,-500.0,0.00052328,120]
[358233470,1744859454815,-498.97434841,0.00052328,120]
[358233471,1744859454825,-500.0,0.00052328,120]
[358233472,1744859454834,-721.75,0.00052328,120]
[358233473,1744859454844,-569.12927073,0.00052328,120]
[358233474,1744859454855,-500.0,0.00052328,120]
[358233475,1744859454865,-500.0,0.00052328,120]
[358233476,1744859454874,-500.0,0.00052328,120]
[358233477,1744859454884,-500.0,0.00052328,120]
[358233478,1744859454894,-1804.57,0.00052328,120]
[358233479,1744859454904,-1178.25,0.00052328,120]
[358233480,1744859454914,-566.07,0.00052328,120]
[358233481,1744859454924,-1301.41,0.00052328,120]
[358233482,1744859454934,-574.44,0.00052328,120]
[358233483,1744859454944,-151.0,0.00052328,120]
[358233484,1744859454954,-109.45299676,0.00052328,120]
[358233485,1744859454972,-331.07,0.00052328,120]
[358233486,1744859454984,-59.47700324,0.00052328,120]
[358233487,1744859454994,-151.0,0.00052328,120]
[358233488,1744859455004,-1289.52299676,0.00052328,120]
[358233489,1744859455015,-394.23937241,0.00052328,120]
[358233490,1744859455026,-420.94763083,0.00052328,120]
[358233491,1744859455036,-500.0,0.00052328,120]
[358233492,1744859455046,-500.0,0.00052328,120]
[358233493,1744859455056,-500.0,0.00052328,120]
[358233494,1744859455065,-495.07382589,0.00052328,120]
[358233495,1744859455075,-516.59091131,0.00052328,120]
[358233496,1744859455085,-500.0,0.00052328,120]
[358233497,1744859455094,-500.0,0.00052328,120]
[358233498,1744859455104,-1442.06,0.00052328,120]
[358233499,1744859455114,-500.0,0.00052328,120]
[358233500,1744859455124,-1567.02,0.00052328,120]
[358233501,1744859455134,-700.29,0.00052328,120]
[358233502,1744859455143,-510.66666768,0.00052328,120]
[358233503,1744859455152,-500.0,0.00052328,120]
[358233504,1744859455161,-500.0,0.00052328,120]
[358233505,1744859455170,-500.0,0.00052328,120]
[358233506,1744859455180,-500.0,0.00052328,120]
[358233507,1744859455191,-500.0,0.00052328,120]
[358233508,1744859455201,-505.24519186,0.00052328,120]
[358233509,1744859455210,-577.58,0.00052328,120]
[358233510,1744859455218,-1558.62,0.00052328,120]
[358233511,1744859455228,-500.0,0.00052328,120]
[358233512,1744859455237,-500.0,0.00052328,120]
[358233513,1744859455246,-500.0,0.00052328,120]
[358233514,1744859455257,-517.72798226,0.00052328,120]
[358233515,1744859455268,-500.0,0.00052328,120]
[358233516,1744859455278,-500.0,0.00052328,120]
[358233517,1744859455288,-512.58330105,0.00052328,120]
[358233518,1744859455297,-1744.51,0.00052328,120]
[358233519,1744859455307,-500.0,0.00052328,120]
[358233520,1744859455317,-500.0,0.00052328,120]
[358233521,1744859455327,-1604.29,0.00052328,120]
[358233522,1744859455337,-524.37671067,0.00052328,120]
[358233523,1744859455347,-728.74,0.00052328,2]
[358233524,1744859455357,-1821.5,0.00052328,120]
[358233525,1744859455366,-1082.35,0.00052328,120]
[358233526,1744859455376,-500.0,0.00052328,120]
[358233527,1744859455386,-151.0,0.00052328,120]
[358233528,1744859455395,-151.0,0.00052328,120]
[358233529,1744859455405,-500.0,0.00052328,120]
[358233530,1744859455415,-592.98,0.00052328,120]
[358233531,1744859455425,-1304.14,0.00052328,120]
[358233532,1744859455435,-500.0,0.00052328,120]
[358233533,1744859455444,-500.0,0.00052328,120]
[358233534,1744859455454,-939.69,0.00052328,120]
[358233535,1744859455463,-500.0,0.00052328,120]
[358233536,1744859455473,-151.0,0.00052328,120]
[358233537,1744859455486,-151.0,0.00052328,120]
[358233538,1744859455497,-500.0,0.00052328,120]
[358233539,1744859455507,-783.13,0.00052328,120]
[358233540,1744859455517,-151.0,0.00052328,120]
[358233541,1744859455526,-151.0,0.00052328,120]
[358233542,1744859455535,-643.58,0.00052328,120]
[358233543,1744859455545,-500.0,0.00052328,120]
[358233544,1744859455554,-680.95,0.00052328,120]
[358233545,1744859455563,-500.0,0.00052328,120]
[358233546,1744859455573,-723.61,0.00052328,30]
[358233547,1744859455583,-1500.12,0.00052328,120]
[358233548,1744859455593,-528.17136659,0.00052328,120]
[358233549,1744859455606,-151.0,0.00052328,120]
[358233550,1744859455616,-151.0,0.00052328,120]